{"text_format":"3","workbook":"xlsx","n_sheets":1,"sheets":["Presupuesto de la boda"],"not_rendered":{"images":1},"read":"whole","date_system":"1900"}

{"sheet":"Presupuesto de la boda","index":0,"n_rows":109,"n_cols":5,"rows_kept":109,"merged":[[2,1,3,1],[5,1,6,1],[14,1,15,1],[24,1,25,1],[33,1,34,1],[43,1,44,1],[50,1,51,1],[60,1,61,1],[73,1,74,1],[87,1,88,1],[95,1,96,1]]}
[{"$nulls":4}," "]
[]
[null,"Gastos totales ","Estimado","Real"]
[null,null,{"$f":"C7+C16+C26+C35+C45+C52+C62+C75+C89+C97","v":{"v":350,"d":"$350"}},{"$f":"D7+D16+D26+D35+D45+D52+D62+D75+D89+D97","v":{"v":320,"d":"$320"}}]
[]
[null,"Ropa","Estimado","Real"]
[null,null,{"$f":"SUM(Tabla_Ropa[[#All],[Estimado]])","v":{"v":350,"d":"$350"}},{"$f":"SUM(Tabla_Ropa[[#All],[Real]])","v":{"v":320,"d":"$320"}}]
[null,"Columna1","Estimado","Real"]
[null,"Alianzas",{"v":350,"d":"$350.00"},{"v":320,"d":"$320.00"}]
[null,"Atuendo de boda"]
[null,"Accesorios"]
[null,"Zapatos"]
[null,"Otros: escribe los detalles"]
[]
[null,"Decoración","Estimado","Real"]
[null,null,{"$f":"SUM(Tabla_Decoraciones[[#All],[Estimado]])","v":{"v":0,"d":"$0"}},{"$f":"SUM(Tabla_Decoraciones[[#All],[Real]])","v":{"v":0,"d":"$0"}}]
[null,"Columna1","Estimado","Real"]
[null,"Moños para los bancos de la iglesia/otros asientos"]
[null,"Centros de mesa (sin las flores)"]
[null,"Velas"]
[null,"Iluminación"]
[null,"Globos"]
[null,"Otros: escribe los detalles"]
[]
[null,"Regalos","Estimado","Real"]
[null,null,{"$f":"SUM(Tabla_Regalos[[#All],[Estimado]])","v":{"v":0,"d":"$0"}},{"$f":"SUM(Tabla_Regalos[[#All],[Real]])","v":{"v":0,"d":"$0"}}]
[null,"Columna1","Estimado","Real"]
[null,"Asistentes"]
[null,"Novios"]
[null,"Padres"]
[null,"Lectores/otros participantes"]
[null,"Otros: escribe los detalles"]
[]
[null,"Flores","Estimado","Real"]
[null,null,{"$f":"SUM(Tabla_Flores[[#All],[Estimado]])","v":{"v":0,"d":"$0"}},{"$f":"SUM(Tabla_Flores[[#All],[Real]])","v":{"v":0,"d":"$0"}}]
[null,"Columna1","Estimado","Real"]
[null,"Ramos"]
[null,"Flores para el ojal"]
[null,"Ramilletes"]
[null,"Ceremonia"]
[null,"Banquete"]
[null,"Otros: escribe los detalles"]
[]
[null,"Música","Estimado","Real"]
[null,null,{"$f":"SUM(Tabla_Música[[#All],[Estimado]])","v":{"v":0,"d":"$0"}},{"$f":"SUM(Tabla_Música[[#All],[Real]])","v":{"v":0,"d":"$0"}}]
[null,"Columna1","Estimado","Real"]
[null,"Músicos para la ceremonia"]
[null,"Banda/DJ para la recepción"]
[null,"Otros: escribe los detalles"]
[]
[null,"Fotografía","Estimado","Real"]
[null,null,{"$f":"SUM(Tabla_Fotografía[[#All],[Estimado]])","v":{"v":0,"d":"$0"}},{"$f":"SUM(Tabla_Fotografía[[#All],[Real]])","v":{"v":0,"d":"$0"}}]
[null,"Columna1","Estimado","Real"]
[null,"Formales"]
[null,"Espontáneas"]
[null,"Impresiones adicionales"]
[null,"Álbumes de fotos"]
[null,"Grabación"]
[null,"Otros: escribe los detalles"]
[]
[null,"Fiesta (no incluye música ni decoración)","Estimado","Real"]
[null,null,{"$f":"SUM(Tabla_Recepción[[#All],[Estimado]])","v":{"v":0,"d":"$0"}},{"$f":"SUM(Tabla_Recepción[[#All],[Real]])","v":{"v":0,"d":"$0"}}]
[null,"Columna1","Estimado","Real"]
[null,"Gastos de sala/salón"]
[null,"Mesas y sillas"]
[null,"Comida"]
[null,"Bebidas"]
[null,"Mantelería"]
[null,"Pastel"]
[null,"Suvenires"]
[null,"Personal y compensaciones"]
[null,"Otros: escribe los detalles"]
[]
[null,"Papeles/Impresión","Estimado","Real"]
[null,null,{"$f":"SUM(Tabla_ImpresiónYPapelería[[#All],[Estimado]])","v":{"v":0,"d":"$0"}},{"$f":"SUM(Tabla_ImpresiónYPapelería[[#All],[Real]])","v":{"v":0,"d":"$0"}}]
[null,"Columna1","Estimado","Real"]
[null,"Invitaciones"]
[null,"Anuncios"]
[null,"Tarjetas de agradecimiento"]
[null,"Artículos de papelería personales"]
[null,"Libro de invitados"]
[null,"Programas"]
[null,"Servilletas para la recepción"]
[null,"Cajitas de cerillas"]
[null,"Caligrafía"]
[null,"Otros: escribe los detalles"]
[]
[null,"Transporte","Estimado","Real"]
[null,null,{"$f":"SUM(Tabla_Transporte[[#All],[Estimado]])","v":{"v":0,"d":"$0"}},{"$f":"SUM(Tabla_Transporte[[#All],[Real]])","v":{"v":0,"d":"$0"}}]
[null,"Columna1","Estimado","Real"]
[null,"Limusinas/carros"]
[null,"Estacionamiento"]
[null,"Taxis"]
[null,"Otros: escribe los detalles"]
[]
[null,"Otros gastos","Estimado","Real"]
[null,null,{"$f":"SUM(Tabla_OtrosGastos[[#All],[Estimado]])","v":{"v":0,"d":"$0"}},{"$f":"SUM(Tabla_OtrosGastos[[#All],[Real]])","v":{"v":0,"d":"$0"}}]
[null,"Columna1","Estimado","Real"]
[null,"Oficiante"]
[null,"Cargo de la iglesia/establecimiento para la ceremonia"]
[null,"Coordinador de la boda"]
[null,"Cena de ensayo"]
[null,"Fiesta de compromiso"]
[null,"Fiestas"]
[null,"Peluquería"]
[null,"Despedidas de soltero"]
[null,"Brunch"]
[null,"Habitaciones de hotel"]
[null,"Otros: escribe los detalles"]